fUST/lending_fUST_20250611
["ID","MTS","AMOUNT","RATE_DAILY","PERIOD"]
[365343257,1749610243089,-2557.99,0.00022465,4]
[365343259,1749610243099,-460.0,0.00022465,4]
[365343261,1749610243108,-460.0,0.00022465,2]
[365343263,1749610243118,-249.4868992,0.00022465,4]
[365343265,1749610243127,-1176.74,0.00022465,4]
[365343267,1749610243137,-1721.47,0.00022465,4]
[365343269,1749610243146,-360.731486,0.00022465,4]
[365343271,1749610243155,-460.0,0.00022465,4]
[365343273,1749610243164,-2396.22,0.00022465,4]
[365343275,1749610243174,-522.21,0.00022465,4]
[365343277,1749610243183,-1185.22,0.00022465,4]
[365343279,1749610243192,-460.0,0.00022465,4]
[365343281,1749610243201,-151.0,0.00022465,7]
[365343283,1749610243211,-758.85,0.00022465,4]
[365343285,1749610243220,-1313.88,0.00022465,4]
[365343287,1749610243229,-432.22,0.000225,7]
[365343289,1749610243239,-7840.2881017,0.00022521,7]
[365343291,1749610243248,-151.0,0.00022521,7]
[365343293,1749610243258,-151.0,0.00022521,7]
[365343295,1749610243268,-307.874437,0.00022521,7]
[365343297,1749610243280,-307.874437,0.00022521,7]
[365343299,1749610243291,-842.5625,0.00022538,2]
[365343301,1749610243300,-160.0,0.00022538,2]
[365343303,1749610243309,-835.03886221,0.00022538,2]
[365343305,1749610243319,-160.0,0.00022538,2]
[365343307,1749610243328,-160.0,0.00022538,2]
[365343309,1749610243337,-160.0,0.00022538,2]
[365343311,1749610243347,-229.71724145,0.00022538,2]
[365343313,1749610243356,-213.16534259,0.00022538,2]
[365343315,1749610243365,-424.19973472,0.00022538,2]
[365343317,1749610243374,-160.0,0.00022538,2]
[365343319,1749610243383,-160.0,0.00022545,2]
[365343321,1749610243392,-160.0,0.00022545,2]
[365343323,1749610243401,-160.0,0.00022545,2]
[365343325,1749610243411,-365.0707398,0.00022548,2]
[365343327,1749610243420,-365.0707398,0.00022548,2]
[365343328,1749610243429,-365.0707398,0.00022548,2]
[365343330,1749610243438,-365.0707398,0.00022548,2]
[365343333,1749610243447,-365.0707398,0.00022548,2]
[365343335,1749610243456,-365.0707398,0.00022548,2]
[365343337,1749610243465,-7840.2881017,0.00022624,7]
[365343339,1749610243475,-1294.76,0.00022699,2]
[365343340,1749610243486,-151.0,0.00022699,7]
[365343342,1749610243496,-151.0,0.00022699,7]
[365343344,1749610243504,-1378.17,0.000227,7]
[365343346,1749610243514,-7840.2881017,0.00022728,7]
[365343349,1749610243525,-460.0,0.00022739,4]
[365343351,1749610243534,-151.987463,0.00022739,7]
[365343353,1749610243546,-151.0,0.00022739,7]
[365343355,1749610243557,-258.242665,0.00022739,7]
[365343357,1749610243566,-258.242665,0.00022739,7]
[365343359,1749610243575,-460.0,0.00022739,4]
[365343361,1749610243585,-460.0,0.00022739,4]
[365343363,1749610243594,-364.20076393,0.00022739,4]
[365343365,1749610243604,-460.0,0.00022739,4]
[365343367,1749610243613,-460.0,0.00022739,4]
[365343369,1749610243622,-460.0,0.00022739,4]
[365343371,1749610243632,-957.76,0.00022739,4]
[365343373,1749610243641,-460.0,0.00022739,4]
[365343375,1749610243650,-2744.82,0.00022739,4]
[365343377,1749610243660,-460.0,0.00022739,4]
[365343379,1749610243669,-913.22,0.00022739,4]
[365343381,1749610243678,-365.9606257,0.00022739,4]
[365343383,1749610243687,-460.0,0.00022739,4]
[365343385,1749610243697,-460.0,0.00022739,4]
[365343386,1749610243706,-340.0,0.00022739,4]
[365343387,1749610243715,-460.0,0.00022739,4]
[365343388,1749610243724,-1194.81,0.00022739,4]
[365343389,1749610243732,-460.0,0.00022739,4]
[365343390,1749610243742,-581.92,0.00022739,4]
[365343391,1749610243751,-460.0,0.00022739,4]
[365343392,1749610243761,-460.0,0.00022739,4]
[365343393,1749610243770,-1238.03,0.00022739,4]
[365343394,1749610243779,-2017.41,0.00022739,4]
[365343395,1749610243788,-575.07,0.00022739,4]
[365343396,1749610243798,-2979.12,0.00022739,4]
[365343397,1749610243807,-1278.52,0.00022739,4]
[365343398,1749610243816,-667.83,0.00022739,4]
[365343399,1749610243826,-2557.99,0.00022739,4]
[365343400,1749610243838,-460.0,0.00022739,4]
[365343401,1749610243848,-460.0,0.00022739,2]
[365343402,1749610243857,-1176.74,0.00022739,4]
[365343403,1749610243866,-1721.47,0.00022739,4]
[365343404,1749610243875,-260.77094841,0.00022739,4]
[365343405,1749610243885,-2396.22,0.00022739,4]
[365343406,1749610243893,-522.21,0.00022739,4]
[365343407,1749610243903,-1185.22,0.00022739,4]
[365343409,1749610243913,-460.0,0.00022739,4]
[365343411,1749610243924,-758.85,0.00022739,4]
[365343413,1749610243933,-1313.88,0.00022739,4]
[365343415,1749610243942,-1156.4994341,0.00022822,2]
[365343417,1749610243952,-307.9447424,0.00022822,2]
[365343419,1749610243961,-7840.2881017,0.00022831,8]
[365343421,1749610243970,-1200.0,0.00022834,2]
[365343423,1749610243980,-173.72164301,0.0002289,2]
[365343425,1749610243989,-423.0,0.00022907,2]
[365343427,1749610243998,-420.0,0.0002292,2]
[365343429,1749610244009,-158.0665709,0.00022928,2]
[365343431,1749610244018,-7840.2881017,0.00022934,8]
[365343433,1749610244027,-151.571426,0.00022935,7]
[365343435,1749610244036,-420.0,0.00022943,2]
[365343437,1749610244047,-151.0,0.00023,8]
[365343439,1749610244057,-500.0,0.00023012,2]
[365343441,1749610244066,-500.0,0.00023012,2]
[365343443,1749610244076,-276.08277603,0.00023012,2]
[365343445,1749610244085,-500.0,0.00023012,2]
[365343447,1749610244094,-235.22721351,0.00023013,4]
[365343449,1749610244103,-151.0,0.00023013,7]
[365343451,1749610244112,-152.839259,0.00023013,7]
[365343453,1749610244122,-440.59736544,0.00023013,4]
[365343455,1749610244131,-362.07496278,0.00023013,4]
[365343457,1749610244140,-460.0,0.00023013,4]
[365343459,1749610244149,-460.0,0.00023013,4]
[365343461,1749610244159,-460.0,0.00023013,4]
[365343463,1749610244168,-957.76,0.00023013,4]
[365343465,1749610244177,-460.0,0.00023013,4]
[365343467,1749610244186,-2744.82,0.00023013,4]
[365343469,1749610244196,-460.0,0.00023013,4]
[365343471,1749610244204,-913.22,0.00023013,4]
[365343473,1749610244214,-151.0,0.00023013,7]
[365343475,1749610244223,-460.0,0.00023013,4]
[365343477,1749610244232,-460.0,0.00023013,4]
[365343479,1749610244241,-460.0,0.00023013,4]
[365343481,1749610244250,-1194.81,0.00023013,4]
[365343483,1749610244259,-460.0,0.00023013,4]
[365343485,1749610244269,-581.92,0.00023013,4]
[365343487,1749610244278,-460.0,0.00023013,4]
[365343489,1749610244287,-460.0,0.00023013,4]
[365343491,1749610244296,-1238.03,0.00023013,4]
[365343493,1749610244305,-272.158606,0.00023013,7]
[365343495,1749610244314,-2017.41,0.00023013,4]
[365343497,1749610244323,-575.07,0.00023013,4]
[365343499,1749610244332,-2979.12,0.00023013,4]
[365343501,1749610244341,-1278.52,0.00023013,4]
[365343503,1749610244350,-667.83,0.00023013,4]
[365343505,1749610244360,-2557.99,0.00023013,4]
[365343507,1749610244369,-460.0,0.00023013,4]
[365343509,1749610244378,-460.0,0.00023013,2]
[365343511,1749610244387,-1176.74,0.00023013,4]
[365343513,1749610244396,-1721.47,0.00023013,4]
[365343515,1749610244406,-151.0,0.00023013,7]
[365343517,1749610244415,-2396.22,0.00023013,4]
[365343519,1749610244424,-522.21,0.00023013,4]
[365343521,1749610244433,-1185.22,0.00023013,4]
[365343523,1749610244442,-460.0,0.00023013,4]
[365343525,1749610244451,-161.842092,0.00023013,7]
[365343527,1749610244460,-151.0,0.00023013,7]
[365343529,1749610244469,-758.85,0.00023013,4]
[365343531,1749610244479,-1313.88,0.00023013,4]
[365343533,1749610244491,-7840.2881017,0.00023038,8]
[365343534,1749610244500,-501.037875,0.00023038,7]
[365343536,1749610244510,-501.037875,0.00023038,7]
[365343539,1749610244519,-500.0,0.0002308,2]
[365343541,1749610244530,-5000.0,0.0002308,2]
[365343543,1749610244539,-500.0,0.0002308,2]
[365343545,1749610244548,-500.0,0.0002308,2]
[365343547,1749610244558,-500.0,0.0002308,2]
[365343549,1749610244567,-500.0,0.0002308,2]
[365343551,1749610244577,-207.4,0.0002308,2]
[365343552,1749610244586,-750.0,0.0002308,2]
[365343555,1749610244595,-500.0,0.0002308,2]
[365343557,1749610244605,-750.0,0.0002308,2]
[365343558,1749610244614,-500.0,0.0002308,2]
[365343560,1749610244624,-750.0,0.0002308,2]
[365343562,1749610244633,-500.0,0.0002308,2]
[365343564,1749610244642,-750.0,0.0002308,2]
[365343566,1749610244651,-500.0,0.0002308,2]
[365343568,1749610244659,-750.0,0.0002308,2]
[365343570,1749610244669,-750.0,0.0002308,2]
[365343572,1749610244678,-515.38450007,0.0002308,2]
[365343575,1749610244688,-750.0,0.0002308,2]
[365343576,1749610244697,-750.0,0.0002308,2]
[365343578,1749610244706,-750.0,0.0002308,2]
[365343581,1749610244716,-750.0,0.0002308,2]
[365343587,1749610244806,-750.0,0.0002308,2]
[365343588,1749610244816,-750.0,0.0002308,2]
[365343589,1749610244825,-591.10451232,0.0002308,2]
[365343590,1749610244834,-285.78694,0.00023141,7]
[365343591,1749610244844,-151.0,0.00023141,7]
[365343592,1749610244853,-307.874437,0.00023141,7]
[365343593,1749610244862,-307.874437,0.00023141,7]
[365343594,1749610244871,-7840.2881017,0.00023141,8]
[365343595,1749610244881,-506.16225976,0.0002322,2]
[365343596,1749610244890,-503.96951609,0.0002322,2]
[365343597,1749610244899,-502.31464502,0.0002322,2]
[365343598,1749610244908,-501.56200485,0.0002322,2]
[365343599,1749610244917,-501.26190894,0.0002322,2]
[365343600,1749610244926,-200.12013536,0.0002322,2]
[365343601,1749610244935,-503.51490656,0.0002322,2]
[365343602,1749610244945,-501.59031998,0.0002322,2]
[365343603,1749610244955,-500.0,0.0002322,2]
[365343604,1749610244965,-160.0,0.0002322,3]
[365343605,1749610244974,-7840.2881017,0.00023245,8]
[365343606,1749610244983,-500.0,0.00023256,2]
[365343607,1749610244993,-151.0,0.00023287,7]
[365343608,1749610245002,-460.0,0.00023287,4]
[365343609,1749610245013,-300.0,0.00023287,4]
[365343610,1749610245022,-460.0,0.00023287,4]
[365343611,1749610245031,-957.76,0.00023287,4]
[365343612,1749610245041,-460.0,0.00023287,4]
[365343613,1749610245050,-2744.82,0.00023287,4]
[365343614,1749610245059,-460.0,0.00023287,4]
[365343615,1749610245069,-913.22,0.00023287,4]
[365343616,1749610245078,-460.0,0.00023287,4]
[365343617,1749610245087,-320.0,0.00023287,4]
[365343618,1749610245096,-460.0,0.00023287,4]
[365343619,1749610245105,-1194.81,0.00023287,4]
[365343620,1749610245115,-460.0,0.00023287,4]
[365343621,1749610245124,-581.92,0.00023287,4]
[365343622,1749610245134,-460.0,0.00023287,4]
[365343623,1749610245143,-460.0,0.00023287,4]
[365343624,1749610245152,-1238.03,0.00023287,4]
[365343625,1749610245162,-2017.41,0.00023287,4]
[365343626,1749610245171,-575.07,0.00023287,4]
[365343627,1749610245180,-2979.12,0.00023287,4]
[365343628,1749610245189,-1278.52,0.00023287,4]
[365343629,1749610245198,-667.83,0.00023287,4]
[365343630,1749610245207,-2557.99,0.00023287,4]
[365343631,1749610245217,-460.0,0.00023287,4]
[365343632,1749610245226,-460.0,0.00023287,2]
[365343633,1749610245235,-1176.74,0.00023287,4]
[365343634,1749610245244,-1721.47,0.00023287,4]
[365343635,1749610245254,-2396.22,0.00023287,4]
[365343636,1749610245264,-522.21,0.00023287,4]
[365343637,1749610245273,-1185.22,0.00023287,4]
[365343638,1749610245282,-460.0,0.00023287,4]
[365343639,1749610245291,-758.85,0.00023287,4]
[365343640,1749610245300,-1313.88,0.00023287,4]
[365343641,1749610245309,-151.0,0.000233,9]
[365343642,1749610245319,-151.0,0.000233,6]
[365343643,1749610245329,-1257.589503,0.00023322,3]
[365343645,1749610245338,-423.0,0.00023323,2]
[365343646,1749610245347,-7840.2881017,0.00023348,9]
[365343647,1749610245356,-1810.524356,0.00023382,2]
[365343648,1749610245365,-15166.74483968,0.000234,7]
[365343649,1749610245374,-15166.74483968,0.000234,7]
[365343650,1749610245383,-7840.2881017,0.00023452,9]
[365343651,1749610245393,-151.0,0.00023452,7]
[365343652,1749610245402,-258.242665,0.00023452,7]
[365343653,1749610245411,-258.242665,0.00023452,7]
[365343654,1749610245420,-167.91038412,0.00023455,2]
[365343655,1749610245429,-151.0,0.000235,8]
[365343656,1749610245438,-202.28223306,0.000235,2]
[365343657,1749610245447,-151.0,0.000235,6]
[365343658,1749610245456,-151.0,0.000235,9]
[365343659,1749610245465,-365.0707398,0.00023507,2]
[365343660,1749610245475,-365.0707398,0.00023507,2]
[365343661,1749610245487,-365.0707398,0.00023507,2]
[365343662,1749610245496,-713.3683601,0.00023507,2]
[365343663,1749610245507,-151.0,0.00023507,7]
[365343664,1749610245516,-213.373721,0.00023507,7]
[365343665,1749610245526,-188255.88647086,0.00023553,2]
[365343666,1749610245536,-153.416781,0.00023555,7]
[365343667,1749610245545,-151.0,0.00023555,7]
[365343668,1749610245554,-151.0,0.00023555,7]
[365343670,1749610245565,-7840.2881017,0.00023555,9]
[365343671,1749610245574,-460.0,0.00023561,4]
[365343674,1749610245584,-460.0,0.00023561,4]
[365343675,1749610245593,-957.76,0.00023561,4]
[365343677,1749610245602,-460.0,0.00023561,4]
[365343679,1749610245611,-2744.82,0.00023561,4]
[365343681,1749610245620,-460.0,0.00023561,4]
[365343683,1749610245630,-913.22,0.00023561,4]
[365343685,1749610245639,-564.46883553,0.00023561,4]
[365343687,1749610245648,-193.53617834,0.00023561,4]
[365343689,1749610245657,-1194.81,0.00023561,4]
[365343691,1749610245667,-460.0,0.00023561,4]
[365343693,1749610245677,-581.92,0.00023561,4]
[365343695,1749610245686,-460.0,0.00023561,4]
[365343697,1749610245696,-460.0,0.00023561,4]
[365343699,1749610245706,-1238.03,0.00023561,4]
[365343701,1749610245716,-2017.41,0.00023561,4]
[365343703,1749610245726,-575.07,0.00023561,4]
[365343704,1749610245735,-2979.12,0.00023561,4]
[365343705,1749610245746,-1278.52,0.00023561,4]
[365343706,1749610245756,-667.83,0.00023561,4]
[365343707,1749610245766,-2557.99,0.00023561,4]
[365343708,1749610245778,-255.87,0.00023561,4]
[365343709,1749610245787,-460.0,0.00023561,2]
[365343710,1749610245797,-1176.74,0.00023561,4]
[365343711,1749610245807,-1721.47,0.00023561,4]
[365343712,1749610245817,-2396.22,0.00023561,4]
[365343713,1749610245826,-522.21,0.00023561,4]
[365343714,1749610245836,-1185.22,0.00023561,4]
[365343715,1749610245845,-460.0,0.00023561,4]
[365343716,1749610245855,-758.85,0.00023561,4]
[365343717,1749610245864,-1313.88,0.00023561,4]
[365343718,1749610245874,-501.037875,0.00023628,7]
[365343719,1749610245884,-501.037875,0.00023628,7]
[365343720,1749610245894,-5000.0,0.00023628,2]
[365343721,1749610245903,-423.0,0.00023633,2]
[365343723,1749610245913,-1618.45,0.00023644,2]
[365343725,1749610245923,-7840.2881017,0.00023659,9]
[365343727,1749610245932,-12370.85246442,0.000237,2]
[365343729,1749610245943,-173.72164301,0.000237,2]
[365343731,1749610245952,-152.954234,0.00023762,7]
[365343733,1749610245962,-307.874437,0.00023762,7]
[365343735,1749610245971,-307.874437,0.00023762,7]
[365343737,1749610245981,-7840.2881017,0.00023762,9]
[365343739,1749610245991,-1000.0,0.00023768,2]
[365343741,1749610246000,-547.46557668,0.00023773,2]
[365343743,1749610246010,-500.0,0.00023773,2]
[365343745,1749610246019,-151.0,0.00023782,7]
[365343747,1749610246028,-152.446039,0.00023796,7]
[365343748,1749610246039,-151.931106,0.00023796,7]
[365343750,1749610246048,-151.0,0.00023796,7]
[365343752,1749610246057,-151.0,0.00023796,7]
[365343754,1749610246066,-151.0,0.00023796,7]
[365343756,1749610246075,-262.10886,0.00023796,7]
[365343758,1749610246085,-262.10886,0.00023796,7]
[365343760,1749610246094,-152.860383,0.00023796,7]
[365343762,1749610246103,-151.0,0.00023796,7]
[365343764,1749610246112,-151.0,0.00023796,7]
[365343766,1749610246122,-151.0,0.00023796,7]
[365343768,1749610246132,-151.0,0.00023796,7]
[365343770,1749610246141,-151.0,0.00023796,7]
[365343772,1749610246151,-151.0,0.00023796,7]
[365343774,1749610246160,-151.0,0.00023796,7]
[365343776,1749610246171,-258.242665,0.00023796,7]
[365343778,1749610246180,-258.242665,0.00023796,7]
[365343780,1749610246190,-307.874437,0.00023796,7]
[365343782,1749610246200,-307.874437,0.00023796,7]
[365343785,1749610246210,-501.037875,0.00023796,7]
[365343788,1749610246221,-501.037875,0.00023796,7]
[365343790,1749610246235,-151.0,0.00023796,7]
[365343792,1749610246247,-151.0,0.00023796,7]
[365343794,1749610246261,-151.0,0.00023796,7]
[365343796,1749610246274,-151.0,0.00023798,7]
[365343798,1749610246285,-280.4839101,0.00023799,2]
[365343800,1749610246296,-31191.49907192,0.000238,2]
[365343803,1749610246316,-2870.96492999,0.000238,2]
[365343805,1749610246333,-205.59334736,0.000238,2]
[365343807,1749610246344,-4966.21685731,0.000238,2]
[365343809,1749610246357,-23293.91919663,0.000238,2]
[365343812,1749610246369,-624.20491612,0.000238,2]
[365343816,1749610246406,-7876.79689364,0.000238,2]
[365343818,1749610246418,-480.0,0.000238,2]
[365343822,1749610246444,-9135.86760116,0.000238,2]
[365343824,1749610246454,-396.32,0.000238,10]
[365343826,1749610246463,-4059.1951168,0.000238,7]
[365343828,1749610246475,-10189.06560005,0.000238,7]
[365343844,1749610246627,-290.17316809,0.00021095,4]
[365343846,1749610246637,-11.18873186,0.00021095,4]
[365343848,1749610246649,-448.81126814,0.00021095,4]
[365343850,1749610246658,-500.0,0.00021363,2]
[365343852,1749610246669,-500.0,0.00021363,2]
[365343854,1749610246678,-571.69418126,0.00021363,2]
[365343856,1749610246688,-365.0707398,0.00022548,2]
[365343858,1749610246698,-500.0,0.00023012,2]
[365343860,1749610246708,-414.3201216,0.00023012,2]
[365343870,1749610246801,-3770.27475728,0.000238,7]
[365343872,1749610246819,-2679.42,0.000238,7]
[365343898,1749610311877,1043.0,0.0002,30]
[365343899,1749610379426,303.03,0.0002,30]
[365343902,1749610558284,893.5,0.00024951,60]
[365343903,1749610612170,2000.0,0.000244,120]
[365343904,1749610652968,3000.0,0.000244,120]
[365343906,1749610756984,1000.0,0.00024657,120]
[365343907,1749610757279,1000.0,0.00024657,120]
[365343908,1749610757535,1000.0,0.00024657,120]
[365343912,1749610800541,2783.0,0.000244,120]
[365343916,1749611067342,201.530497,0.00013699,2]
[365343917,1749611094699,3052.0,0.00024658,120]
[365343921,1749611150620,500.0,0.00024657,120]
[365343965,1749611293111,1666.0,0.00024657,120]
[365343994,1749611432319,-452.70936328,0.0001893,2]
[365343995,1749611432328,-322.41,0.00019843,2]
[365343996,1749611432339,-193.0483054,0.00019908,2]
[365343997,1749611432348,-700.0,0.00019968,2]
[365343998,1749611432357,-201.530497,0.00020187,2]
[365343999,1749611432367,-619.09284215,0.00020619,2]
[365344000,1749611432376,-644.82,0.00020788,2]
[365344001,1749611432386,-700.0,0.00021064,2]
[365344002,1749611432395,-300.0,0.00021072,2]
[365344003,1749611432404,-500.0,0.00021073,2]
[365344006,1749611432414,-502.20439799,0.00021073,2]
[365344009,1749611432423,-513.63256357,0.00021073,2]
[365344011,1749611432433,-163.146,0.00021094,2]
[365344013,1749611432442,-300.0,0.00021094,2]
[365344015,1749611432451,-400.0,0.00021095,4]
[365344017,1749611432460,-505.59676758,0.00021095,4]
[365344019,1749611432470,-460.0,0.00021095,4]
[365344021,1749611432479,-280.00565034,0.00021095,4]
[365344022,1749611432488,-460.0,0.00021095,4]
[365344023,1749611432497,-452.99190551,0.00021095,4]
[365344024,1749611432507,-467.0783,0.00021095,4]
[365344025,1749611432517,-161.8990421,0.00021095,4]
[365344026,1749611432526,-460.0,0.00021095,4]
[365344027,1749611432535,-445.78409177,0.00021095,4]
[365344028,1749611432544,-446.99495305,0.00021095,4]
[365344029,1749611432553,-422.22109757,0.00021095,4]
[365344030,1749611432563,-444.96893586,0.00021095,4]
[365344031,1749611432572,-205.93978856,0.00021095,4]
[365344032,1749611432581,-460.0,0.00021095,4]
[365344033,1749611432590,-476.56235879,0.00021095,4]
[365344034,1749611432600,-446.12369783,0.00021095,4]
[365344035,1749611432609,-452.69091265,0.00021095,4]
[365344036,1749611432618,-444.72178327,0.00021095,4]
[365344037,1749611432628,-451.66602448,0.00021095,4]
[365344038,1749611432637,-444.67062512,0.00021095,4]
[365344039,1749611432646,-448.30425217,0.00021095,4]
[365344040,1749611432655,-441.34750329,0.00021095,4]
[365344041,1749611432665,-464.97752175,0.00021095,4]
[365344042,1749611432674,-453.76425296,0.00021095,4]
[365344043,1749611432683,-444.56019248,0.00021095,4]
[365344044,1749611432692,-451.55901371,0.00021095,4]
[365344045,1749611432701,-451.62191499,0.00021095,4]
[365344046,1749611432710,-449.12595653,0.00021095,4]
[365344047,1749611432719,-428.83603101,0.00021095,4]
[365344048,1749611432729,-42.11458056,0.00021095,4]
[365344049,1749611432741,-422.58727807,0.00021095,4]
[365344050,1749611432750,-460.0,0.00021095,4]
[365344051,1749611432760,-447.97478659,0.00021095,4]
[365344052,1749611432769,-427.84091838,0.00021095,4]
[365344053,1749611432779,-400.70451454,0.00021095,4]
[365344054,1749611432788,-328.53847249,0.00021095,4]
[365344055,1749611432798,-449.68130432,0.00021095,4]
[365344056,1749611432807,-460.0,0.00021095,4]
[365344057,1749611432816,-463.51486158,0.00021095,4]
[365344058,1749611432825,-126.23339919,0.00021095,4]
[365344110,1749611438303,-310.98315261,0.00021095,4]
[365344112,1749611438312,-443.23047862,0.00021095,4]
[365344114,1749611438323,-460.0,0.00021095,4]
[365344116,1749611438332,-460.0,0.00021095,4]
[365344118,1749611438343,-256.4083494,0.00021095,4]
[365344120,1749611438352,-440.0,0.00021095,4]
[365344122,1749611438361,-256.78822288,0.00021095,4]
[365344124,1749611438371,-440.0,0.00021095,4]
[365344126,1749611438380,-483.18128638,0.00021095,4]
[365344128,1749611438389,-430.0,0.00021095,4]
[365344130,1749611438398,-460.0,0.00021095,4]
[365344132,1749611438407,-308.72708198,0.00021095,4]
[365344134,1749611438417,-440.0,0.00021095,4]
[365344136,1749611438427,-445.25779342,0.00021095,4]
[365344138,1749611438437,-460.0,0.00021095,4]
[365344140,1749611438446,-460.0,0.00021095,4]
[365344142,1749611438455,-460.0,0.00021095,4]
[365344144,1749611438465,-456.48118128,0.00021095,4]
[365344146,1749611438474,-460.0,0.00021095,4]
[365344147,1749611438483,-187.02358768,0.00021095,4]
[365344148,1749611438492,-475.31493642,0.00021095,4]
[365344149,1749611438502,-460.0,0.00021095,4]
[365344150,1749611438511,-460.0,0.00021095,4]
[365344151,1749611438521,-440.96631272,0.00021095,4]
[365344152,1749611438531,-460.0,0.00021095,4]
[365344153,1749611438540,-460.0,0.00021095,4]
[365344154,1749611438550,-460.0,0.00021095,4]
[365344155,1749611438559,-194.33849012,0.00021095,4]
[365344156,1749611438568,-460.0,0.00021095,4]
[365344157,1749611438577,-460.0,0.00021095,4]
[365344158,1749611438587,-410.0,0.00021095,4]
[365344159,1749611438597,-410.0,0.00021095,4]
[365344160,1749611438606,-557.28511718,0.00021095,4]
[365344161,1749611438616,-440.0,0.00021095,4]
[365344162,1749611438625,-440.0,0.00021095,4]
[365344163,1749611438635,-410.0,0.00021095,4]
[365344164,1749611438643,-449.79694498,0.00021095,4]
[365344165,1749611438653,-458.17,0.00021095,4]
[365344166,1749611438664,-460.0,0.00021095,4]
[365344167,1749611438674,-460.0,0.00021095,4]
[365344168,1749611438683,-410.0,0.00021095,4]
[365344169,1749611438693,-460.0,0.00021095,4]
[365344170,1749611438702,-430.0,0.00021095,4]
[365344171,1749611438712,-440.0,0.00021095,4]
[365344172,1749611438721,-439.24169734,0.00021095,4]
[365344173,1749611438731,-445.7589411,0.00021095,4]
[365344174,1749611438740,-438.62835091,0.00021095,4]
[365344175,1749611438750,-440.0,0.00021095,4]
[365344176,1749611438759,-442.17673484,0.00021095,4]
[365344177,1749611438770,-430.0,0.00021095,4]
[365344178,1749611438780,-460.96160819,0.00021095,4]
[365344179,1749611438789,-430.0,0.00021095,4]
[365344180,1749611438799,-460.0,0.00021095,4]
[365344181,1749611438808,-460.0,0.00021095,4]
[365344182,1749611438818,-430.0,0.00021095,4]
[365344183,1749611438827,-445.31080644,0.00021095,4]
[365344184,1749611438836,-460.0,0.00021095,4]
[365344185,1749611438846,-440.0,0.00021095,4]
[365344186,1749611438855,-460.0,0.00021095,4]
[365344187,1749611438869,-460.0,0.00021095,4]
[365344188,1749611438878,-460.0,0.00021095,4]
[365344189,1749611438888,-460.0,0.00021095,4]
[365344190,1749611438897,-401.40974133,0.00021095,4]
[365344191,1749611438908,-460.0,0.00021095,4]
[365344192,1749611438918,-524.58592713,0.00021095,4]
[365344193,1749611438928,-462.22815629,0.00021095,4]
[365344194,1749611438938,-401.71530437,0.00021095,4]
[365344195,1749611438947,-440.0,0.00021095,4]
[365344196,1749611438958,-402.36348876,0.00021095,4]
[365344197,1749611438967,-460.0,0.00021095,4]
[365344198,1749611438977,-460.0,0.00021095,4]
[365344199,1749611438986,-401.24874024,0.00021095,4]
[365344200,1749611438995,-460.0,0.00021095,4]
[365344201,1749611439005,-401.70148269,0.00021095,4]
[365344202,1749611439015,-283.3913097,0.00021095,4]
[365344203,1749611439024,-460.0,0.00021095,4]
[365344204,1749611439033,-460.0,0.00021095,4]
[365344205,1749611439043,-460.0,0.00021095,4]
[365344206,1749611439052,-460.0,0.00021095,4]
[365344207,1749611439062,-444.35704521,0.00021095,4]